Cogmind - Beta 15 @@@ ROGUE MODE // 2025.06.30 @ 19:02:48 Player: PANDORA Result: Destroyed by Z9-BYA(R) with Subdweller Laser Performance ------------- Evolutions (0) 0 Regions Visited (2) 400 Robots Destroyed (17) 85 Value Destroyed (280) 280 Prototype IDs (0) 0 Alien Tech Used (0) 0 Bonus (0) 0 TOTAL SCORE: 765 Bonus ------- None Cogmind --------- Core Integrity 0/250 Matter 227/300 Energy 100/100 System Corruption 2% Temperature Cool (6) Movement Treading (240) Ox1 Location -10/Subcaves Parts ------- > --- POWER (1) -------- (None) > --- PROPULSION (2) --- Light Treads > --- UTILITY (2) ------ Large Storage Unit Light Armor Plating > --- WEAPON (2) ------- Light Assault Rifle Light Assault Rifle > --- INVENTORY (15) --- Light Ion Engine Light Nuclear Core Light Armor Plating Light Armor Plating Medium Laser Light Assault Rifle Light Assault Rifle Peak State ------------ > --- POWER ------------ Light Ion Engine > --- PROPULSION ------- Light Treads Light Treads > --- UTILITY ---------- Large Storage Unit Improved Terrain Scanner > --- WEAPON ----------- Medium Laser Light Assault Rifle > --- INVENTORY -------- Ion Engine Light Ion Engine Light Nuclear Core Light Treads Light Armor Plating Light Armor Plating Light Armor Plating Medium Laser [Rating: 10] Favorites ----------- Power Light Ion Engine Engine Light Ion Engine Propulsion Light Treads Treads Light Treads Utility Improved Terrain Scanner Device Improved Terrain Scanner Storage Large Storage Unit Protection Light Armor Plating Weapon Light Assault Rifle Energy Gun Medium Laser Ballistic Gun Light Assault Rifle Build | -11 -10 -10 ------- Run | Yrd Mat Sub Slots Evolved . | . . . Power . | . . . Propulsion . | . . . Utility . | . . . Weapon . | . . . Parts Attached 13 | 7 4 2 Power 2 | 1 1 . Engine 2 | 1 1 . Core . | . . . Reactor . | . . . Propulsion 3 | 2 . 1 Treads 3 | 2 . 1 Leg . | . . . Wheel . | . . . Hover . | . . . Flight . | . . . Utility 4 | 2 1 1 Device 1 | 1 . . Storage 2 | 1 1 . Processor . | . . . Hackware . | . . . Protection 1 | . . 1 Artifact . | . . . Weapon 4 | 2 2 . Energy Gun 1 | 1 . . Energy Cannon . | . . . Ballistic Gun 3 | 1 2 . Ballistic Cannon . | . . . Launcher . | . . . Special Weapon . | . . . Impact Weapon . | . . . Slashing Weapon . | . . . Piercing Weapon . | . . . Special Melee Weapon . | . . . Unidentified Prototypes . | . . . Parts Lost 5 | . 1 4 Power 2 | . 1 1 Propulsion 2 | . . 2 Utility 1 | . . 1 Weapon . | . . . Highest Loss Streak 4 | . 1 4 To Critical Strikes . | . . . Average Backups 6 | 2 7 8 Power 2 | 1 2 2 Propulsion . | . . . Utility 2 | . 2 2 Weapon 1 | . 1 3 Tool/Special . | . . . Unused Backups 7 | . . 7 Power 2 | . . 2 Propulsion . | . . . Utility 2 | . . 2 Weapon 3 | . . 3 Tool/Special . | . . . Average Slot Usage (%) 97 | . 98 89 Engine 12 | . 12 11 Treads 27 | . 28 21 Device 13 | . 14 10 Storage 14 | . 14 14 Energy Gun 9 | . 10 . Ballistic Gun 18 | . 17 28 Peak Build Rating 10 | 9 10 10 Average Rating 9 | 5 9 8 On Entrance 6 | . 9 10 Naked Turns . | . . . Heaviest Build 28 | 12 28 28 Greatest Support 40 | 40 40 40 Greatest Overweight (x) . | . . . Average Overweight (x) . | . . . Largest Inventory Capacity 15 | 8 15 15 Average Capacity 12 | 7 13 15 Most Carried 11 | 5 11 9 Average Carried 6 | 2 7 8 Final Capacity 15 | 8 15 15 Final Carried 9 | 2 9 7 Class Distribution -------------------- 100% | Mutant Dominant Class ---------------- Mutant | -10/Materials Mutant | -10/Subcaves Resources | -11 -10 -10 ----------- Run | Yrd Mat Sub Matter Collected 313 | 279 34 . Remotely . | . . . Salvage Created 499 | 131 284 84 Parts 30 | 10 14 6 Haulers Intercepted . | . . . Recyclers Shooed 1 | . 1 . Parts Field Recycled . | . . . Retrieved Matter . | . . . Parts Self-Destructed . | . . . Prevented . | . . . Kills | -11 -10 -10 ------- Run | Yrd Mat Sub Combat Hostiles Destroyed 10 | . 8 2 Guns 10 | . 8 2 Classes Destroyed 7 | 3 3 1 Worker 1 | 1 . . Tunneler 2 | 2 . . Recycler 2 | 1 1 . Watcher 2 | . 2 . Swarmer 6 | . 6 . Grunt 2 | . 2 . Subdweller 2 | . . 2 Best Kill Streak 3 | 3 3 1 Combat Bots Only 3 | . 3 1 Max Kills in Single Turn 2 | 1 2 1 Gunslinging . | . . . Exploded . | . . . Melee . | . . . Uniques/NPCs Destroyed . | . . . Combat | -11 -10 -10 -------- Run | Yrd Mat Sub Hostile Shots Fired 89 | . 53 36 Missed 23 | . 13 10 Hits 66 | . 40 26 Projectile 66 | . 40 26 Critical Strikes 1 | . . 1 Damage Taken 931 | . 373 558 Core 253 | . 99 154 Absorbed by Shields . | . . . Core Remaining (%) 100 | 100 . . Volleys Fired 61 | 9 34 18 Largest 2 | 2 2 2 Hottest 70 | 70 70 40 Shots Fired 123 | 18 69 36 Gun 123 | 18 69 36 Cannon . | . . . Launcher . | . . . Special . | . . . Kinetic 83 | 9 38 36 Thermal 40 | 9 31 . Explosive . | . . . Electromagnetic . | . . . Robot Hit Streak 7 | 6 7 6 Robot Miss Streak 4 | 2 4 1 Penetration Max . | . . . Secondary Targets 3 | . 2 1 Max Gunslinging Chain 1 | . 1 1 Shots Hit Robots 72 | 10 32 30 Core Hits 33 | 6 21 6 Critical Kills . | . . . Critical Parts Destroyed . | . . . Critical Strikes 3 | 1 2 . Burn 3 | 1 2 . Melee Attacks . | . . . Impact . | . . . Slashing . | . . . Piercing . | . . . Sneak Attacks . | . . . Combat Hostiles . | . . . Follow-up Attacks . | . . . Damage Inflicted 635 | 123 355 157 Guns 607 | 123 327 157 Cannons . | . . . Explosions . | . . . Melee . | . . . Ramming 28 | . 28 . Kinetic 306 | 37 112 157 Thermal 301 | 86 215 . Explosive . | . . . Electromagnetic . | . . . Impact . | . . . Slashing . | . . . Piercing . | . . . Highest Corruption 2 | . 2 2 Average Corruption 2 | . 2 2 Corruption Purged . | . . . Corruption Blocked . | . . . Effects 4 | . 3 1 Matter Fused 1 | . 1 . Data Loss (major) 1 | . 1 . Misfires 1 | . 1 . Alerts 1 | . . 1 Overload Shots . | . . . Overflow Damage . | . . . Projectiles . | . . . Explosions . | . . . Melee . | . . . Knockbacks . | . . . Impact . | . . . Kinetic . | . . . Secondary . | . . . Self-Inflicted Damage . | . . . Shots . | . . . Rammed 5 | . 5 . Targets Rammed 6 | . 6 . Kicked . | . . . Crushed 1 | . 1 . Highest Temperature 210 | 90 210 . Average Temperature 61 | 38 68 . Received Heat Transfer 177 | . 69 108 Siege Activations . | . . . Martial Activations . | . . . Shielding Activations . | . . . Robots Disrupted . | . . . Combat Hostiles . | . . . Robots Corrupted . | . . . Combat Hostiles . | . . . Parts Fried . | . . . Impact Corruptions . | . . . Robots Melted . | . . . Combat Hostiles . | . . . Parts Melted 2 | 1 1 . Heat Transferred 1110 | 333 777 . Parts Sabotaged . | . . . Parts Stolen . | . . . Parts Stripped . | . . . Power Chain Reactions . | . . . Alert | -11 -10 -10 ------- Run | Yrd Mat Sub Maximum Alert Level . | . . . Low Security (%) 100 | 100 100 . Level 1 . | . . . Level 2 . | . . . Level 3 . | . . . Level 4 . | . . . Level 5 . | . . . High Security . | . . . Max Security . | . . . Peak Influence 82 | 10 82 . Initial 3 | . 3 . Average 15 | 1 16 . Influence Increases 274 | 20 254 . Destroy 0b10 Robot/C 160 | . 160 . Destroy 0b10 Robot/NC 35 | 20 15 . Destroy Leader 34 | . 34 . Lose Combat Pursuer 45 | . 45 . Influence Decreases 274 | 15 259 . Entered New Map 2 | . 2 . Time Decay 262 | 15 247 . Lost Part 10 | . 10 . Squads Dispatched . | . . . Investigation . | . . . Extermination . | . . . Reinforcement . | . . . Assault . | . . . Garrison . | . . . Intercept . | . . . Searches Triggered . | . . . Construction Impeded . | . . . Haulers Reinforced . | . . . Active Scanning Responses . | . . . Cargo Convoy Interrupts . | . . . Stealth | -11 -10 -10 --------- Run | Yrd Mat Sub Distress Signals 1 | . 1 . Communications Jammed . | . . . Distress Signals . | . . . Times Spotted 20 | . 17 3 Peak Tracking Total 5 | . 5 3 Tactical Retreats 2 | . 2 . Traps | -11 -10 -10 ------- Run | Yrd Mat Sub Traps Triggered 1 | . 1 . Indirectly . | . . . Trap Hack Attempts . | . . . Triggered . | . . . Disarmed . | . . . Reprogrammed . | . . . Reused . | . . . Traps Extracted . | . . . Installed . | . . . Triggered . | . . . Machines | -11 -10 -10 ---------- Run | Yrd Mat Sub Machines Disabled . | . . . Max in Single Turn . | . . . Machines Repaired . | . . . Machines Dismantled . | . . . Machines Sabotaged . | . . . Overloaded Fab Kills . | . . . Hacking | -11 -10 -10 --------- Run | Yrd Mat Sub Machines Accessed 1 | . 1 . Terminals 1 | . 1 . Fabricators . | . . . Repair Stations . | . . . Recycling Units . | . . . Scanalyzers . | . . . Garrison Access . | . . . Total Hacks 5 | . 5 . Successful . | . . . Failed 5 | . 5 . Catastrophic . | . . . Database Lockouts . | . . . Manual . | . . . Terminals 5 | . 5 . Fabricators . | . . . Repair Stations . | . . . Recycling Units . | . . . Scanalyzers . | . . . Garrison Access . | . . . Terminal Hacks . | . . . Fabricator Hacks . | . . . Repair Station Hacks . | . . . Recycling Unit Hacks . | . . . Scanalyzer . | . . . Garrison Access Hacks . | . . . Unauthorized Hacks . | . . . Terminals . | . . . Fabricators . | . . . Repair Stations . | . . . Recycling Units . | . . . Scanalyzers . | . . . Garrison Access . | . . . Data Cores Recovered 1 | . 1 . Used . | . . . Hacking Detections 1 | . 1 . Full Trace Events . | . . . Feedback Events . | . . . Feedback Blocked . | . . . Robot Schematics Acquired . | . . . Robots Built . | . . . Authchips . | . . . Time . | . . . Total Robot Build Rating . | . . . Part Schematics Acquired . | . . . Parts Built . | . . . Authchips . | . . . Time . | . . . Total Part Build Rating . | . . . Parts Repaired . | . . . Time . | . . . Parts Recycled . | . . . Recycled Matter . | . . . Retrieved Matter . | . . . Retrieved Components . | . . . Parts Scanalyzed . | . . . Part Schematics Acquired . | . . . Parts Damaged . | . . . Bothacking | -11 -10 -10 ------------ Run | Yrd Mat Sub Used RIF Installer . | . . . Robots Hacked . | . . . Non-combat . | . . . Combat . | . . . Robot Hacks Applied . | . . . Relay Couplers Released . | . . . Fabnet Peak Effective % . | . . . Robots Rewired . | . . . Allies Hacked . | . . . Hacks Repelled . | . . . Allies | -11 -10 -10 -------- Run | Yrd Mat Sub Total Allies . | . . . Largest Group . | . . . Highest-Rated Group . | . . . Highest-Rated Ally . | . . . Total Orders . | . . . Ally Attacks . | . . . Total Damage . | . . . Kills . | . . . Allies Corrupted . | . . . Allies Melted . | . . . Intel | -11 -10 -10 ------- Run | Yrd Mat Sub Active Infowar (turns) 1334 | 24 1241 69 Terrain 1334 | 24 1241 69 Robot Analysis Total . | . . . Derelict Logs Recovered . | . . . Drone Launches . | . . . Drone Recoveries . | . . . Exploration | -11 -10 -10 ------------- Run | Yrd Mat Sub Turns Passed 1449 | 111 1241 97 Spaces Moved 781 | 52 698 31 Core 11 | 11 . . Treads 770 | 41 698 31 Legs . | . . . Wheels . | . . . Hover . | . . . Flight . | . . . Fastest Speed 50 | 50 160 160 Average Speed 158 | 136 160 160 Slowest Speed 160 | 160 160 160 Overloaded Moves . | . . . Propulsion Burnouts . | . . . Robots Hopped . | . . . Potential Cave-ins . | . . . Cave-ins Triggered . | . . . Exploration Rate (%) 35 | 5 98 3 Regions Visited 2 Branch Regions 1 Pre-discovered Areas . | . . . Known Exits Taken . | . . . Unknown Exits Taken 2 | 1 1 . Scrap Searched . | . . . Spaces Dug . | . . . Terrain Destroyed . | . . . Melee . | . . . Projectile . | . . . AOE . | . . . Terrain Rammed . | . . . Walls Destroyed . | . . . Machines Disabled . | . . . Actions | -11 -10 -10 --------- Run | Yrd Mat Sub Total 885 | 76 758 51 Wait 3 | . 3 . Move 779 | 51 697 31 Hop . | . . . Pick Up 20 | 9 11 . Fast Attach . | . . . Attach 10 | 7 1 2 Detach . | . . . Swap 3 | . 3 . Drop 3 | . 3 . Fire 61 | 9 34 18 Melee . | . . . Ram . | . . . Kick . | . . . Crush 6 | . 6 . Escape Stasis . | . . . Rewire . | . . . Trap . | . . . Miscellaneous . | . . . Route ------- -11/Scrapyard -10/Materials (discovered 6 exits: [*Mat x3] / [*Min x2] / [*Sub]) -10/Subcaves History --------- Turn | Location | Event 41 | -11/Scrapyard | Discovered new exit (range 15) 112 | -11/Scrapyard | Entered Materials 113 | -10/Materials | Met a group of wandering Federalists 203 | -10/Materials | Discovered new exit (range 5) 273 | -10/Materials | Discovered new exit (range 12) 303 | -10/Materials | Build established: Mutant 439 | -10/Materials | Discovered new exit (range 10) 709 | -10/Materials | Discovered new exit (range 11) 985 | -10/Materials | Discovered new exit (range 7) 1143 | -10/Materials | Discovered new exit (range 13) 1353 | -10/Materials | Entered Subcaves 1354 | -10/Subcaves | Continued accompanying wandering Federalists (3) 1354 | -10/Subcaves | Approached by a straggling Scientist 1403 | -10/Subcaves | A Subdweller sparked back to life 1403 | -10/Subcaves | A Subdweller sparked back to life 1403 | -10/Subcaves | A Subdweller sparked back to life 1404 | -10/Subcaves | Core integrity fell below 50% 1429 | -10/Subcaves | Core integrity fell below 20% 1443 | -10/Subcaves | Lost 3 allies 1450 | -10/Subcaves | Destroyed by Z9-BYA(R) with Subdweller Laser Last Messages --------------- 01403_ 1K-54B(R) creaks and sparks as it begins to move. YG-VAY(c): "I think it's somewhere southwest of here" 01407_ G7-X6B(R) affixes Scrap Shield Fragment to Scrap Shield. 01408_ Q2-DBA(g) destroyed. 01410_ E4-CH8(g) destroyed. 01411_ G7-X6B(R) destroyed. 01411_ Switching to secondary target: Z9-BYA(R). 01412_ NW-KI6(g) destroyed. 01414_ Lgt. Treads destroyed. 01418_ Subatomizers dissect the Aluminum Leg. 01422_ Lgt. Treads destroyed. 01422_ Imp. Terrain Scanner destroyed. 01434_ 1K-54B(R) destroyed. 01434_ Ion Engine destroyed. 01436_ System corrupted: IFF burst signal emitted. 01440_ Critical hit (Destroy). Map ----- +----------------------------------------------------+ | ??????????????????????## ##???????????#?????? | | ??????????????????????# ##????????????????? | | ??????????????????????# ##????????#??????? | | ????????????#?????????# ##??????????????? | | ??????????????????????## #??????????????? | | ???????????????????????## #??##??#???????? | | ???????????????????????## #??????????????? | | ????????????#????#?????# #??????????????? | | ???????????????????????# ##??????????????? | | ???????????#???????????# #???#???????????? | | ?????????????#?????????## #???????????????? | | ????????????????????????## #???????????????? | | ?????????????????????#???# #?#?????????????? | | ???????????????????????### ##??#???????????? | | ???????????????????????# #????#?????????? | | ???????????????????????# ##??????????????? | | ???????????????????????## ##???????????????? | | ????????????????????????## ###????????????????? | | ?????????????#??????????# #????????#????????? | | ???????????????????????### ##??????????#?????? | | ?????????????????#?????## #???#????????????? | | ????????????????????#??# #????????????????? | | ???????????????????????# ##????????????????? | | ???????????????????????# c #????#????????????? | | ????????????????????#?## #?????????????????? | | ??????????????????????#; @ ##?????????????????? | | ???????????????????#%![ ##??????????????????? | | ??????????????????#=[=*% ##??#???????????????? | | ????????????????![=%R*%!& #???????????????????? | | ????????????? ###[<&! ???????????????????? | | ???????????? ????#[ = < ???????????????????? | | ????????????#????? # < #?????#????????????? | | ????????????????? & ##??????#???????????? | | ??????????????? # # ####???????????????????? | | ???????????????? #?# ###???????????????????????? | | ??????????????? ???#???????????????????????????? | | ?????????????????#??????????? ?????????????????? | | ????????????????????????????#??????????????????? | | ????????????????????????????#??????????????????? | | ???????????????????????????#???????????????????? | | ???????????????????????????????????????????????? | | ???????????????????????????????????????????????? | | ???????????????????????????????????????????????? | | ???????????????????????????????????????????????? | | ???????????????????????????????????????????????? | | ???????????????????????????????????????????????? | | ???????????????????????????????????????????????? | | ???????????????????????????????????????????????? | | ???????????????????????????????????????????????? | | ???????????????????????????????????????????????? | +----------------------------------------------------+ Best States ------------- Heat Dissipation 25 Energy Generation 10 Energy Capacity 250 Matter Stores 300 Matter Capacity 300 Sight Range 16 Terrain Scan Range 16 Terrain Scan Density 10 Armor Coverage 150 Evasion (%) 50 Recoil Reduction 2 Item Schematics ----------------- None Robot Schematics ------------------ None Fabricated ------------ Nothing Repaired ---------- Nothing Alien Tech Used ----------------- None Achievements -------------- None Challenges ------------ None Game ------ Seed ProtonWarpVibroblade Manual? 0 Play Time 00:14:24 Cumulative 5.2 hours Start 2025.06.30 @ 18:40:57 End 2025.06.30 @ 19:02:48 Sessions 1 Manual Loads 0 Difficulty Rogue Special Mode None Game No. 7 Rogue 7 Adventurer 0 Explorer 0 Win Type - Total 0 Types 0/0/0/0/0/0/0/0/0/0 Lore% 4 Gallery% 6 Achievement% 8 Wizard Run 0 Options --------- Layout 1 ASCII 0 Keyboard 0 Movement Mouse Keybinds 0 Fullscreen 0 Font 16/Miniblock Map View 50x40 Zoom Use 0% Tactical HUD 1 Map Filters NONE Filters NONE Steam 0 RUN: 1ea84996-b85b-427c-8bcc-0b0d8865ad6a